bitfinex/quotes_SOLUSD_20250217
["timestamp","ask_amount","ask_price","bid_price","bid_amount"]
[1739807531027,13.41184853,180.98,180.92,29.0469693]
[1739807531218,13.41184853,180.96,180.91,29.0469693]
[1739807531418,13.41184853,180.94,180.91,29.0469693]
[1739807531645,13.41184853,180.94,180.93,20.0]
[1739807531846,1.03638097,180.95,180.91,29.0469693]
[1739807532046,29.0469693,180.98,180.92,29.0469693]
[1739807532246,13.41184853,180.96,180.91,29.0469693]
[1739807532412,13.41184853,180.94,180.9,29.0469693]
[1739807532735,29.0469693,181.0,180.93,29.0469693]
[1739807532936,1.03617958,180.99,180.94,29.0469693]
[1739807533141,13.41184853,180.98,180.92,29.0469693]
[1739807533350,13.41184853,180.96,180.9,29.0469693]
[1739807533520,29.0469693,181.0,180.94,29.0469693]
[1739807533722,13.41184853,180.98,180.94,29.0469693]
[1739807533935,13.41184853,180.96,180.94,29.0469693]
[1739807534126,1.0363662,180.97,180.83,0.063]
[1739807534127,13.41184853,180.94,180.93,29.0469693]
[1739807534326,13.41184853,180.98,180.93,29.0469693]
[1739807534639,13.41184853,180.96,180.94,29.0469693]
[1739807534937,14.44821633,180.95,180.94,29.0469693]
[1739807535239,13.41184853,180.94,180.92,29.0469693]
[1739807535437,14.44837082,180.93,180.92,29.0469693]
[1739807535820,13.41184853,180.92,180.91,29.1099693]
[1739807536327,13.41184853,180.95,180.91,29.1099693]
[1739807536528,131.0,180.97,180.94,29.0469693]
[1739807537041,29.0469693,181.02,180.95,34.5732693]
[1739807537333,13.41184853,181.0,180.94,29.0469693]
[1739807537525,42.45881783,181.0,180.94,5.5266]
[1739807537728,13.41184853,181.0,180.95,29.0469693]
[1739807537922,160.0469693,181.03,180.96,29.0469693]
[1739807538123,29.0469693,181.01,180.95,29.0469693]
[1739807538324,13.41184853,180.98,180.92,29.0469693]
[1739807538524,13.41184853,180.96,180.92,5.5273]
[1739807538729,8.97825094,180.95,180.92,5.5273]
[1739807539317,8.97825094,180.95,180.92,34.5742693]
[1739807539646,13.41184853,180.94,180.92,34.5742693]
[1739807539940,13.41184853,180.92,180.91,34.6375693]
[1739807540342,1.03652624,180.93,180.91,34.6375693]
[1739807540813,1.03656899,180.93,180.91,5.5906]
[1739807541018,1.03656899,180.93,180.91,34.6375693]
[1739807541350,1.03656899,180.93,180.91,5.5906]
[1739807541563,1.03656899,180.93,180.91,34.6375693]
[1739807541721,14.44838387,180.94,180.92,29.0469693]
[1739807541916,14.44838387,180.94,180.93,29.0469693]
[1739807542652,87.62,180.96,180.93,29.0469693]
[1739807542944,87.62,180.96,180.91,19.4096]
[1739807542945,87.62,180.96,180.95,29.0469693]
[1739807543319,87.62,180.96,180.95,34.5732693]
[1739807544244,87.62,180.96,180.92,29.0469693]
[1739807544556,87.62,180.96,180.92,34.5742693]
[1739807544847,1.03652619,180.95,180.92,19.3455]
[1739807545250,1.03652619,180.95,180.93,29.0469693]
[1739807545251,14.44837472,180.95,180.93,29.0469693]
[1739807545916,14.44837472,180.95,180.94,29.0469693]
[1739807547535,14.44837472,180.95,180.94,34.5735693]
[1739807547725,87.65,180.96,180.94,34.5735693]
[1739807547927,87.65,180.96,180.95,29.0469693]
[1739807548952,59.5749,180.96,180.95,29.0469693]
[1739807549628,59.5749,180.96,180.95,34.5732693]
[1739807549953,72.98674853,180.96,180.95,5.5263]
[1739807550452,13.41184853,180.95,180.93,34.5736693]
[1739807550625,14.44833801,180.94,180.91,5.5903]
[1739807550830,13.41184853,180.92,180.91,5.5903]
[1739807551045,14.44842359,180.92,180.91,5.5903]
[1739807551358,14.44842359,180.92,180.91,34.6372693]
[1739807551869,14.44842359,180.92,180.91,29.1099693]
[1739807552241,12.081,180.93,180.91,29.1099693]
[1739807552569,12.081,180.93,180.92,29.0469693]
[1739807552764,1.03655426,180.95,180.92,29.0469693]
[1739807553062,1.03655426,180.95,180.94,29.0469693]
[1739807553360,14.44840279,180.95,180.93,29.0469693]
[1739807553955,13.41184853,180.94,180.92,5.5273]
[1739807554167,14.44840385,180.93,180.92,5.5273]
[1739807554659,14.44840385,180.93,180.91,5.5906]
[1739807556562,14.44840385,180.93,180.91,34.6375693]
[1739807556751,1.03655532,180.93,180.91,34.6375693]
[1739807556947,1.03652338,180.92,180.91,34.6375693]
[1739807557141,13.41184853,180.93,180.91,34.6375693]
[1739807557341,13.41184853,180.93,180.92,29.0469693]
[1739807557760,13.41184853,180.93,180.91,34.6375693]
[1739807557964,14.44841624,180.92,180.91,5.5906]
[1739807558149,14.44841624,180.92,180.91,0.063]
[1739807558464,51.37368554,180.92,180.91,0.063]
[1739807559047,13.41184853,180.91,180.82,0.03]
[1739807559243,13.41184853,180.86,180.82,5.5603]
[1739807559544,13.41184853,180.84,180.82,0.03]
[1739807560342,1.03716557,180.84,180.82,0.03]
[1739807562564,102.0890141,180.84,180.82,0.03]
[1739807563478,102.0890141,180.84,180.82,29.0769693]
[1739807564569,102.0890141,180.84,180.82,34.6072693]
[1739807564959,102.0890141,180.84,180.82,0.03]
[1739807565153,102.0890141,180.84,180.82,5.5603]
[1739807565980,102.0890141,180.84,180.83,29.1099693]
[1739807566466,102.0890141,180.84,180.83,34.6399693]
[1739807566652,102.0890141,180.84,180.83,5.593]
[1739807567268,102.0890141,180.84,180.83,34.6399693]
[1739807567469,102.0890141,180.84,180.83,5.593]
[1739807567660,102.0890141,180.84,180.83,0.063]
[1739807568170,102.0890141,180.84,180.83,5.593]
[1739807568470,102.0890141,180.84,180.83,29.1099693]
[1739807570690,102.0890141,180.84,180.83,34.6399693]
[1739807572554,88.67716557,180.84,180.83,34.6399693]
[1739807572868,87.64,180.84,180.83,34.6399693]
[1739807573073,93.14,180.84,180.83,34.6399693]
[1739807573262,107.58883907,180.84,180.83,34.6399693]
[1739807573464,13.41184853,180.84,180.83,34.6399693]
[1739807574194,13.41184853,180.84,180.83,0.063]
[1739807574686,13.41184853,180.84,180.83,34.6399693]
[1739807574887,1.03699156,180.84,180.83,34.6399693]
[1739807575191,14.44884009,180.84,180.83,34.6399693]
[1739807575358,1.03699156,180.84,180.83,34.6399693]
[1739807575561,88.69694614,180.85,180.83,34.6399693]
[1739807575775,102.10879467,180.85,180.84,29.0469693]
[1739807576264,87.66,180.85,180.84,34.5766693]
[1739807580700,87.66,180.85,180.84,23.70335148]
[1739807581197,59.8487,180.85,180.84,23.70335148]
[1739807581388,28.9108,180.85,180.84,23.70335148]
[1739807581567,1.06678959,180.91,180.84,37.52765148]
[1739807581769,1.06678959,180.91,180.9,18.17365148]
[1739807583172,0.03,180.91,180.9,23.70155148]
[1739807583597,1.03649121,180.94,180.9,41.87520296]
[1739807583897,87.66,180.95,180.93,18.17365148]
[1739807584063,87.66,180.95,180.94,18.17365148]
[1739807585199,101.07184853,180.95,180.93,18.17365148]
[1739807585379,1.03648458,180.94,180.93,23.70055148]
[1739807585963,14.44833311,180.94,180.93,18.17365148]
[1739807586170,13.41184853,180.93,180.88,18.17365148]
[1739807586381,105.83365148,180.95,180.82,0.03]
[1739807586382,13.41184853,180.89,180.84,23.70335148]
[1739807586696,13.41184853,180.87,180.84,5.5297]
[1739807586883,13.41184853,180.85,180.84,23.70335148]
[1739807587095,13.41184853,180.85,180.83,23.76665148]
[1739807587397,1.03703967,180.84,180.82,15.11566827]
[1739807587703,13.41184853,180.85,180.82,5.5303]
[1739807587997,1.03713852,180.84,180.82,5.5303]
[1739807588179,13.41184853,180.85,180.82,5.5303]
[1739807588382,1.03715755,180.84,180.82,5.5303]
[1739807589194,1.03715755,180.84,180.82,34.62630724]
[1739807589398,14.44898825,180.83,180.82,34.62630724]
[1739807590696,14.44898825,180.83,180.82,5.5303]
[1739807591496,13.41184853,180.82,180.81,5.5306]
[1739807591799,1.03713972,180.83,180.81,5.5306]
[1739807591972,1.03725282,180.82,180.81,5.5306]
[1739807592175,1.03725282,180.82,180.79,5.5309]
[1739807592504,13.41184853,180.8,180.78,5.5615]
[1739807592694,1.0373861,180.79,180.78,5.5615]
[1739807593275,14.44923463,180.79,180.78,0.03]
[1739807593785,14.44923463,180.79,180.78,29.12600724]
[1739807595700,14.44923463,180.79,180.78,34.65750724]
[1739807599808,14.44923463,180.79,180.78,0.03]
[1739807600173,145.44923463,180.79,180.78,0.03]
[1739807600393,144.41184853,180.79,180.78,0.03]
[1739807600575,13.41184853,180.79,180.78,0.03]
[1739807600894,13.41184853,180.79,180.78,29.12600724]
[1739807600895,14.44939604,180.79,180.78,29.12600724]
[1739807602479,13.41184853,180.79,180.78,29.12600724]
[1739807602671,1.03731479,180.8,180.79,5.5312]
[1739807602872,1.03725986,180.83,180.79,34.62720724]
[1739807603078,14.44910839,180.83,180.82,29.09600724]
[1739807604102,13.41184853,180.82,180.81,29.09600724]
[1739807604285,13.41184853,180.82,180.8,29.09600724]
[1739807604490,13.41184853,180.8,180.79,5.5312]
[1739807604994,1.03734615,180.81,180.78,0.03]
[1739807605306,13.41184853,180.79,180.78,0.03]
[1739807605594,14.44940517,180.79,180.78,29.12600724]
[1739807605982,14.44940517,180.79,180.78,34.65750724]
[1739807606186,1.03733742,180.83,180.78,34.65750724]
[1739807606389,13.41184853,180.82,180.78,0.03]
[1739807606587,14.44934118,180.81,180.79,29.09600724]
[1739807606795,1.03749265,180.81,180.8,29.09600724]
[1739807607495,13.41184853,180.81,180.8,29.09600724]
[1739807607696,13.41184853,180.81,180.78,29.12600724]
[1739807607901,13.41184853,180.79,180.78,0.03]
[1739807608572,13.41184853,180.79,180.78,29.12600724]
[1739807608772,1.03750193,180.79,180.78,29.12600724]
[1739807608976,14.44935046,180.79,180.78,0.03]
[1739807611309,14.44935046,180.79,180.78,18.22571013]
[1739807611780,14.44935046,180.79,180.78,0.03]
[1739807612405,14.44935046,180.79,180.78,18.22571013]
[1739807612774,14.44935046,180.79,180.78,23.75721013]
[1739807612979,1.03750193,180.79,180.78,23.75721013]
[1739807613200,1.03726096,180.82,180.78,23.75721013]
[1739807613403,14.44910949,180.82,180.81,18.19571013]
[1739807613621,13.41184853,180.81,180.78,0.03]
[1739807613794,13.41184853,180.79,180.78,0.03]
[1739807614191,13.41184853,180.79,180.78,18.22571013]
[1739807614513,1.03744738,180.82,180.78,23.75721013]
[1739807614686,1.03744738,180.82,180.81,18.19571013]
[1739807614890,13.41184853,180.81,180.79,18.19571013]
[1739807615206,13.41184853,180.79,180.78,0.03]
[1739807615708,13.41184853,180.81,180.78,0.03]
[1739807616003,87.7,180.83,180.8,18.19571013]
[1739807616208,144.41184853,180.82,180.78,0.03]
[1739807616384,162.63755866,180.82,180.78,0.03]
[1739807616582,13.41184853,180.8,180.78,0.03]
[1739807617111,13.41184853,180.79,180.78,0.03]
[1739807617514,13.41184853,180.8,180.78,0.03]
[1739807617883,1.03767792,180.79,180.78,0.03]
[1739807618216,14.44952645,180.79,180.78,0.03]
[1739807619218,14.44952645,180.79,180.75,0.063]
[1739807619219,13.41184853,180.78,180.75,0.063]
[1739807619383,13.41184853,180.76,180.75,0.063]
[1739807623216,13.41184853,180.76,180.75,23.79121013]
[1739807623796,88.75780468,180.77,180.75,23.79121013]
[1739807624001,88.75780468,180.77,180.76,18.19571013]
[1739807624216,102.16965321,180.77,180.76,18.19571013]
[1739807625318,102.16965321,180.77,180.75,0.063]
[1739807625319,13.41184853,180.76,180.75,0.063]
[1739807625609,13.41184853,180.76,180.75,18.25871013]
[1739807625988,13.41184853,180.76,180.75,23.79121013]
[1739807626810,0.03,180.82,180.75,23.79121013]
[1739807627021,1.06733447,180.82,180.8,18.19571013]
[1739807627204,1.06733447,180.82,180.79,18.19571013]
[1739807627409,13.41184853,180.81,180.79,18.19571013]
[1739807627610,14.44920261,180.8,180.79,23.72691013]
[1739807630727,1.06722096,180.82,180.79,23.72691013]
[1739807630924,1.06722096,180.82,180.81,18.19571013]
[1739807631140,13.41184853,180.81,180.79,5.5312]
[1739807631342,0.03,180.82,180.76,5.5321]
[1739807631626,13.41184853,180.81,180.76,5.5321]
[1739807631834,13.41184853,180.81,180.76,23.72781013]
[1739807632332,13.41184853,180.81,180.77,18.19571013]
[1739807633201,1.03744412,180.8,180.76,23.72781013]
[1739807633420,1.03744412,180.8,180.75,0.063]
[1739807633421,13.41184853,180.77,180.75,0.063]
[1739807633606,14.44951727,180.76,180.75,0.063]
[1739807634402,14.44951727,180.76,180.75,5.5955]
[1739807636109,14.44951727,180.76,180.75,23.79121013]
[1739807637846,1.03748426,180.8,180.75,37.62241013]
[1739807638140,13.41184853,180.79,180.76,18.19571013]
[1739807638338,13.41184853,180.77,180.75,0.063]
[1739807638633,1.03771088,180.76,180.75,0.063]
[1739807639450,1.03771088,180.76,180.75,5.5955]
[1739807639738,1.03771088,180.76,180.75,23.79121013]
[1739807641012,1.03771088,180.76,180.75,5.5955]
[1739807642211,1.03771088,180.76,180.75,0.063]
[1739807643216,11.30452359,180.77,180.75,0.063]
[1739807643741,1.03328604,180.76,180.75,0.063]
[1739807644511,19.22899617,180.76,180.75,0.063]
[1739807645115,18.02255217,180.76,180.75,0.063]
[1739807645415,39.1672007,180.76,180.75,0.063]
[1739807645611,39.1672007,180.76,180.74,0.063]
[1739807645612,144.41184853,180.75,180.74,0.063]
[1739807645826,31.60755866,180.75,180.65,18.19571013]
[1739807646037,13.41184853,180.68,180.65,5.5355]
[1739807646340,12.3707,180.69,180.68,5.5346]
[1739807646550,131.0,180.72,180.68,5.5346]
[1739807646713,12.3707,180.73,180.7,18.19571013]
[1739807646917,12.3707,180.73,180.68,23.73031013]
[1739807647147,13.41184853,180.69,180.66,5.5349]
[1739807647323,31.60755866,180.68,180.65,5.5355]
[1739807647652,13.41184853,180.66,180.64,0.063]
[1739807648026,31.60755866,180.66,180.64,5.5988]
[1739807648222,31.60755866,180.66,180.64,5.5987]
[1739807648539,31.60755866,180.66,180.64,0.063]
[1739807650027,13.41184853,180.66,180.64,0.063]
[1739807650446,13.41184853,180.66,180.64,5.5988]
[1739807650830,13.41184853,180.66,180.64,0.063]
[1739807652256,144.41184853,180.66,180.64,0.063]
[1739807654024,144.41184853,180.66,180.64,18.25871013]
[1739807654431,13.41184853,180.66,180.64,18.25871013]
[1739807654626,13.41184853,180.66,180.64,0.063]
[1739807656754,31.60755866,180.65,180.64,0.063]
[1739807657141,162.60755866,180.65,180.64,0.063]
[1739807660563,13.41184853,180.64,180.58,5.5376]
[1739807660747,18.19571013,180.59,180.56,0.063]
[1739807660948,13.41184853,180.58,180.56,0.063]
[1739807661148,39.87905866,180.57,180.56,0.063]
[1739807662247,21.68334853,180.57,180.56,0.063]
[1739807662667,13.41184853,180.57,180.56,0.063]
[1739807664646,13.41184853,180.57,180.56,23.79701013]
[1739807664847,13.41184853,180.57,180.56,5.6013]
[1739807665873,13.41184853,180.57,180.56,0.063]
[1739807666173,13.41184853,180.56,180.47,18.19571013]
[1739807666374,31.60755866,180.54,180.48,18.19571013]
[1739807666674,119.38755866,180.54,180.48,23.73621013]
[1739807667051,13.41184853,180.52,180.48,5.5405]
[1739807667447,13.41184853,180.52,180.47,18.19571013]
[1739807667662,31.60755866,180.52,180.46,23.73701013]
[1739807667873,118.71541013,180.54,180.48,18.19571013]
[1739807668048,118.71541013,180.54,180.47,18.19571013]
[1739807668245,31.60755866,180.53,180.46,5.5413]
[1739807668461,31.60755866,180.53,180.46,23.73701013]
[1739807668766,13.41184853,180.53,180.47,18.19571013]
[1739807668969,13.41184853,180.53,180.48,18.19571013]
[1739807669147,13.41184853,180.53,180.49,18.19571013]
[1739807669348,13.41184853,180.53,180.48,18.19571013]
[1739807669576,13.41184853,180.53,180.46,5.5413]
[1739807669577,13.41184853,180.53,180.49,18.19571013]
[1739807669775,13.41184853,180.53,180.46,19.3947]
[1739807669776,13.41184853,180.53,180.52,18.19571013]
[1739807670302,13.41184853,180.53,180.48,18.19571013]
[1739807670458,13.41184853,180.53,180.52,18.19571013]
[1739807671075,13.41184853,180.53,180.52,23.73521013]
[1739807671448,13.41184853,180.53,180.52,5.5395]
[1739807671855,13.41184853,180.53,180.46,19.3947]
[1739807672257,13.41184853,180.53,180.47,18.19571013]
[1739807672463,13.41184853,180.53,180.5,18.19571013]
[1739807673186,13.41184853,180.53,180.52,18.19571013]
[1739807673360,87.78,180.54,180.52,18.19571013]
[1739807673361,87.78,180.54,180.52,18.22571013]
[1739807673557,131.0,180.62,180.53,18.19571013]
[1739807673887,13.41184853,180.62,180.59,18.19571013]
[1739807674183,20.5049,180.63,180.59,18.19571013]
[1739807674379,20.5049,180.63,180.57,18.19571013]
[1739807674585,13.41184853,180.62,180.57,18.19571013]
[1739807674952,13.41184853,180.62,180.58,5.5377]
[1739807675208,13.41184853,180.62,180.58,23.73341013]
[1739807675363,13.41184853,180.62,180.59,18.19571013]
[1739807676153,13.41184853,180.62,180.56,18.19571013]
[1739807676384,13.41184853,180.62,180.57,18.19571013]
[1739807676566,13.41184853,180.62,180.58,18.19571013]
[1739807676769,13.41184853,180.62,180.57,18.19571013]
[1739807676981,13.41184853,180.62,180.57,23.73371013]
[1739807677786,13.41184853,180.62,180.58,18.19571013]
[1739807678293,13.41184853,180.62,180.59,18.19571013]
[1739807678988,13.41184853,180.62,180.58,18.19571013]
[1739807679282,13.41184853,180.62,180.57,23.73371013]
[1739807679881,13.41184853,180.62,180.58,18.19571013]
[1739807680382,13.41184853,180.62,180.57,18.19571013]
[1739807681358,13.41184853,180.59,180.53,18.19571013]
[1739807681573,31.60755866,180.59,180.52,18.22571013]
[1739807681761,13.41184853,180.57,180.52,0.03]
[1739807682178,13.41184853,180.55,180.52,0.03]
[1739807682479,31.60755866,180.53,180.45,0.03]
[1739807682679,13.41184853,180.51,180.46,18.19571013]
[1739807683168,13.41184853,180.51,180.45,0.03]
[1739807683169,13.41184853,180.51,180.47,18.19571013]
[1739807683377,13.41184853,180.51,180.46,18.19571013]
[1739807683762,31.60755866,180.51,180.45,0.03]
[1739807683992,13.41184853,180.49,180.45,0.03]
[1739807684178,31.60755866,180.47,180.45,0.03]
[1739807684379,31.60755866,180.46,180.39,18.19571013]
[1739807684574,21.14304853,180.44,180.38,18.19571013]
[1739807685089,152.14304853,180.44,180.38,18.19571013]
[1739807685264,13.41184853,180.42,180.3,13.8657]
[1739807685465,13.41184853,180.42,180.37,18.19571013]
[1739807685800,13.41184853,180.42,180.36,18.19571013]
[1739807685968,31.60755866,180.42,180.35,18.19571013]
[1739807686604,13.41184853,180.4,180.35,18.19571013]
[1739807686761,131.0,180.4,180.28,5.5469]
[1739807686962,131.0,180.39,180.33,18.19571013]
[1739807687161,131.0,180.4,180.28,5.5469]
[1739807687389,131.0,180.41,180.35,18.19571013]
[1739807687690,131.0,180.41,180.31,20.0]
[1739807687858,6.0,180.4,180.39,18.19571013]
[1739807688062,7.7312,180.44,180.39,18.19571013]
[1739807688258,7.7312,180.44,180.4,18.19571013]
[1739807688690,13.41184853,180.43,180.31,20.0]
[1739807688890,13.41184853,180.43,180.38,18.19571013]
[1739807689062,13.41184853,180.43,180.41,18.19571013]
[1739807689276,13.41184853,180.43,180.4,18.19571013]
[1739807689472,13.41184853,180.43,180.39,18.19571013]
[1739807689988,13.41184853,180.43,180.32,19.4098]
[1739807690297,13.41184853,180.43,180.4,18.19571013]
[1739807691300,13.41184853,180.43,180.38,18.19571013]
[1739807691465,13.41184853,180.43,180.32,13.8642]
[1739807691796,149.19571013,180.42,180.35,18.19571013]
[1739807692171,149.19571013,180.41,180.34,18.19571013]
[1739807692493,7.6623,180.38,180.32,18.19571013]
[1739807692796,18.19571013,180.37,180.29,5.5464]
[1739807693089,138.6623,180.38,180.25,5.5478]
[1739807693090,131.0,180.36,180.25,5.5478]
[1739807693301,131.0,180.35,180.29,18.19571013]
[1739807693470,143.3459,180.34,180.29,18.19571013]
[1739807693674,13.41184853,180.33,180.3,18.19571013]
[1739807693874,143.91184853,180.33,180.25,5.5478]
[1739807694082,131.0,180.32,180.26,18.19571013]
[1739807694283,131.0,180.31,180.26,18.19571013]
[1739807694483,131.0,180.31,180.23,5.5484]
[1739807694484,87.88,180.3,180.23,5.5484]
[1739807694801,131.0,180.29,180.25,18.19571013]
[1739807694964,131.0,180.29,180.21,5.549]
[1739807694965,12.6119,180.27,180.2,10.0]
[1739807695169,18.19571013,180.21,179.96,27.84380502]
[1739807695372,12.6119,180.14,179.94,18.19571013]
[1739807695671,12.6119,180.12,179.91,13.8958]
[1739807695998,137.2426,180.11,180.07,18.19571013]
[1739807696181,27.00549592,180.09,179.91,16.12112259]
[1739807696377,143.5735,180.23,179.95,276.91059682]
[1739807696565,131.0,180.22,179.98,19.4465]
[1739807696888,27.88899221,180.32,180.18,12.8017594]
[1739807697097,13.2091,180.33,180.27,29.26931844]
[1739807697277,13.2091,180.33,180.26,0.03]
[1739807697897,0.063,180.42,180.32,2.27620986]
[1739807698082,0.063,180.42,180.39,29.26931844]
[1739807698299,0.063,180.42,180.4,29.26931844]
[1739807698588,0.063,180.42,180.27,29.26931844]
[1739807698898,20.0,180.41,180.38,29.26931844]
[1739807699076,20.0,180.4,180.18,19.97957433]
[1739807699279,29.26931844,180.38,180.28,29.26931844]
[1739807699591,29.26931844,180.32,180.15,13.8771]
[1739807699791,27.9294,180.29,180.2,29.26931844]
[1739807699997,7.9294,180.29,180.23,29.26931844]
[1739807700217,7.9294,180.29,180.27,29.26931844]
[1739807700398,7.9294,180.29,180.25,29.26931844]
[1739807700700,7.9294,180.29,180.22,29.26931844]
[1739807700863,7.9294,180.29,180.24,29.26931844]
[1739807701194,10.90465254,180.28,180.18,29.26931844]
[1739807701714,10.90465254,180.28,180.26,29.26931844]
[1739807702094,10.90465254,180.28,180.18,29.26931844]
[1739807702293,10.90465254,180.28,180.24,29.26931844]
[1739807702491,10.90465254,180.28,180.11,19.4325]
[1739807702722,10.90465254,180.28,180.23,29.26931844]
[1739807702901,10.90465254,180.28,180.27,29.26931844]
[1739807703220,10.90465254,180.28,180.27,58.53863688]
[1739807703420,7.26976836,180.28,180.27,58.53863688]
[1739807703597,115.72760215,180.3,180.27,58.53863688]
[1739807703598,85.60530215,180.3,180.27,58.53863688]
[1739807703803,43.56931844,180.41,180.29,29.26931844]
[1739807704010,29.26931844,180.41,180.32,29.26931844]
[1739807704197,29.26931844,180.41,180.34,29.26931844]
[1739807704393,20.4658,180.44,180.36,29.26931844]
[1739807704794,20.4658,180.44,180.39,5.5435]
[1739807705197,20.4658,180.44,180.4,29.26931844]
[1739807705399,12.3984,180.44,180.4,29.26931844]
[1739807705725,13.47484853,180.42,180.37,5.544]
[1739807705893,13.41184853,180.4,180.32,34.81491844]
[1739807706223,13.41184853,180.4,180.34,29.26931844]
[1739807706423,13.41184853,180.38,180.32,29.26931844]
[1739807706601,29.26931844,180.37,180.3,34.81531844]
[1739807706917,29.26931844,180.4,180.32,29.26931844]
[1739807707098,0.063,180.42,180.37,29.26931844]
[1739807707299,29.33231844,180.42,180.34,29.26931844]
[1739807707509,13.41184853,180.39,180.33,29.26931844]
[1739807707694,29.26931844,180.38,180.3,29.26931844]
[1739807707899,13.41184853,180.37,180.34,29.26931844]
[1739807708100,0.063,180.42,180.35,29.26931844]
[1739807708299,0.063,180.42,180.37,29.26931844]
[1739807709102,0.063,180.42,180.39,29.26931844]
[1739807709415,0.063,180.42,180.36,29.26931844]
[1739807709618,42.68116697,180.39,180.32,29.26931844]
[1739807709823,42.68116697,180.36,180.29,29.26931844]
[1739807710003,29.26931844,180.37,180.3,29.26931844]
[1739807710327,13.41184853,180.37,180.3,29.26931844]
[1739807710536,13.41184853,180.37,180.31,29.26931844]
[1739807710708,29.26931844,180.39,180.31,29.26931844]
[1739807711027,13.41184853,180.38,180.31,29.26931844]
[1739807711224,13.41184853,180.38,180.33,29.26931844]
[1739807711426,29.26931844,180.41,180.34,29.26931844]
[1739807711599,29.26931844,180.37,180.3,29.26931844]
[1739807712006,29.26931844,180.34,180.27,29.26931844]
[1739807712205,13.41184853,180.31,180.24,5.5481]
[1739807712507,13.41184853,180.32,180.27,29.26931844]
[1739807712820,13.41184853,180.32,180.28,29.26931844]
[1739807713131,29.26931844,180.37,180.29,29.26931844]
[1739807713329,29.26931844,180.32,180.25,29.26931844]
[1739807713529,13.41184853,180.31,180.26,29.26931844]
[1739807713831,29.26931844,180.36,180.29,29.26931844]
[1739807714197,29.26931844,180.35,180.24,20.0]
[1739807714406,29.26931844,180.36,180.29,29.26931844]
[1739807714621,29.26931844,180.39,180.32,29.26931844]
[1739807715023,42.68116697,180.38,180.31,29.26931844]
[1739807715417,0.063,180.42,180.34,29.26931844]
[1739807715617,29.26931844,180.37,180.28,5.5469]
[1739807715820,13.41184853,180.35,180.29,29.26931844]
[1739807716022,29.26931844,180.34,180.28,34.81621844]
[1739807716230,13.41184853,180.33,180.28,5.5469]
[1739807716530,29.26931844,180.36,180.28,5.5469]
[1739807716828,13.41184853,180.35,180.3,29.26931844]
[1739807717034,13.41184853,180.35,180.31,29.26931844]
[1739807717209,13.41184853,180.37,180.31,49.26931844]
[1739807717404,13.41184853,180.37,180.33,29.26931844]
[1739807717611,29.26931844,180.41,180.34,29.26931844]
[1739807717831,13.41184853,180.4,180.34,29.26931844]
[1739807718035,13.41184853,180.34,180.19,27.7484]
[1739807718207,13.41184853,180.35,180.3,29.26931844]
[1739807718409,0.063,180.42,180.33,29.26931844]
[1739807718603,29.26931844,180.41,180.34,29.26931844]
[1739807718826,29.33231844,180.42,180.35,29.26931844]
[1739807719036,0.063,180.42,180.36,29.26931844]
[1739807719420,42.74416697,180.42,180.33,20.0]
[1739807719622,13.41184853,180.4,180.34,29.26931844]
[1739807719941,13.41184853,180.4,180.35,29.26931844]
[1739807720135,42.68116697,180.41,180.34,29.26931844]
[1739807720522,13.41184853,180.39,180.33,29.26931844]
[1739807720710,42.68116697,180.37,180.31,20.0]
[1739807720917,13.41184853,180.37,180.34,29.26931844]
[1739807721442,13.41184853,180.39,180.34,34.81411844]
[1739807721611,13.41184853,180.39,180.34,5.5448]
[1739807721612,171.66051452,180.36,180.34,5.5448]
[1739807721813,171.66051452,180.36,180.31,12.42434316]
[1739807722055,171.66051452,180.36,180.35,29.26931844]
[1739807722347,185.07236305,180.36,180.33,29.26931844]
[1739807722518,185.07236305,180.36,180.34,29.26931844]
[1739807723232,171.66051452,180.36,180.35,29.26931844]
[1739807724238,171.66051452,180.36,180.35,34.81401844]
[1739807724645,223.19893685,180.36,180.35,34.81401844]
[1739807724942,16.32870546,180.36,180.35,64.08333688]
[1739807725115,181.73396616,180.39,180.38,20.0]
[1739807725434,89.56851218,180.39,180.38,49.26931844]
[1739807726036,61.71071218,180.39,180.38,54.81311844]
[1739807726818,154.61221473,180.42,180.38,68.67271844]
[1739807727241,154.61221473,180.42,180.41,29.26931844]
[1739807727759,154.61221473,180.42,180.41,20.0]
[1739807728044,154.61221473,180.42,180.38,5.5437]
[1739807728418,13.41184853,180.41,180.38,5.5437]
[1739807728717,13.41184853,180.41,180.38,34.81301844]
[1739807729019,154.61221473,180.42,180.4,29.26931844]
[1739807729345,154.61221473,180.42,180.41,218.88906787]